[Event "Titled Tuesday Blitz June 20 Early 2023"]
[White "Kovacsy, Barnabas"]
[Black "Moksh Amit Doshi"]
[WhiteFideId "769290"]
[BlackFideId "25064967"]
[WhiteElo "2130"]
[BlackElo "2297"]
[Result "1-0"]
[Round "6"]
[TimeControl "180+2"]
[Date "2023.06.20"]
[WhiteClock "0:01:13"]
[BlackClock "0:01:38"]
[Board "95"]

1. e4 {[%clk 0:03:00]}  c5 {[%clk 0:02:56]} 2. Nf3 {[%clk 0:03:00]}  e6 {[%clk 0:02:57]} 3. d4 {[%clk 0:03:00]}  cxd4 {[%clk 0:02:58]} 4. Nxd4 {[%clk 0:03:01]}  Nc6 {[%clk 0:02:58]} 5. Nc3 {[%clk 0:03:01]}  Qc7 {[%clk 0:02:59]} 6. Be3 {[%clk 0:03:01]}  a6 {[%clk 0:02:59]} 7. Be2 {[%clk 0:03:00]}  Nf6 {[%clk 0:02:59]} 8. O-O {[%clk 0:03:00]}  Be7 {[%clk 0:03:00]} 9. f3 {[%clk 0:02:46]}  b5 {[%clk 0:02:54]} 10. a3 {[%clk 0:02:45]}  Bb7 {[%clk 0:02:52]} 11. Qd2 {[%clk 0:02:45]}  O-O {[%clk 0:02:42]} 12. Rad1 {[%clk 0:02:45]}  Na5 {[%clk 0:02:42]} 13. Kh1 {[%clk 0:02:43]}  Nc4 {[%clk 0:02:40]} 14. Bxc4 {[%clk 0:02:43]}  Qxc4 {[%clk 0:02:41]} 15. Bg5 {[%clk 0:02:34]}  h6 {[%clk 0:02:38]} 16. Be3 {[%clk 0:02:11]}  Rfd8 {[%clk 0:02:34]} 17. Qf2 {[%clk 0:02:03]}  Rac8 {[%clk 0:02:33]} 18. Qg3 {[%clk 0:02:01]}  Kh8 {[%clk 0:02:28]} 19. Nb3 {[%clk 0:01:54]}  Qc7 {[%clk 0:02:04]} 20. Qf2 {[%clk 0:01:45]}  Qb8 {[%clk 0:01:58]} 21. Bb6 {[%clk 0:01:40]}  Re8 {[%clk 0:01:57]} 22. Ba7 {[%clk 0:01:40]}  Qa8 {[%clk 0:01:57]} 23. Na5 {[%clk 0:01:38]}  Bxa3 {[%clk 0:01:54]} 24. bxa3 {[%clk 0:01:28]}  Rxc3 {[%clk 0:01:53]} 25. Bd4 {[%clk 0:01:26]}  Rxa3 {[%clk 0:01:53]} 26. Nxb7 {[%clk 0:01:21]}  Qxb7 {[%clk 0:01:52]} 27. Bxf6 {[%clk 0:01:21]}  gxf6 {[%clk 0:01:52]} 28. Qh4 {[%clk 0:01:16]}  Kg7 {[%clk 0:01:52]} 29. Qg4+ {[%clk 0:01:16]}  Kf8 {[%clk 0:01:52]} 30. Qh4 {[%clk 0:01:15]}  Ke7 {[%clk 0:01:52]} 31. Qxh6 {[%clk 0:01:15]}  Qc8 {[%clk 0:01:49]} 32. Qd2 {[%clk 0:01:14]}  Qc6 {[%clk 0:01:38]} 33. Qb4+ {[%clk 0:01:13]} 1-0


[Site "https://www.chess.com"]

[Event "Titled Tuesday Blitz June 20 Early 2023"]
[White "Demidov, Mikhail"]
[Black "Dixit, Nikhil"]
[WhiteFideId "4197143"]
[BlackFideId "5059534"]
[WhiteElo "2500"]
[BlackElo "2207"]
[Result "1-0"]
[Round "6"]
[TimeControl "180+2"]
[Date "2023.06.20"]
[WhiteClock "0:00:16"]
[BlackClock "0:00:05"]
[Board "98"]

1. Nf3 {[%clk 0:03:00]}  Nf6 {[%clk 0:03:00]} 2. g3 {[%clk 0:02:59]}  g6 {[%clk 0:03:01]} 3. b3 {[%clk 0:02:59]}  Bg7 {[%clk 0:03:01]} 4. Bb2 {[%clk 0:03:00]}  O-O {[%clk 0:03:02]} 5. Bg2 {[%clk 0:03:00]}  d6 {[%clk 0:03:03]} 6. d4 {[%clk 0:03:00]}  a5 {[%clk 0:02:59]} 7. O-O {[%clk 0:02:59]}  a4 {[%clk 0:02:59]} 8. c4 {[%clk 0:02:59]}  Ne4 {[%clk 0:02:56]} 9. Ne1 {[%clk 0:02:48]}  f5 {[%clk 0:02:50]} 10. Nc2 {[%clk 0:02:45]}  c5 {[%clk 0:02:48]} 11. Qc1 {[%clk 0:02:41]}  Nc6 {[%clk 0:02:34]} 12. Rd1 {[%clk 0:02:41]}  a3 {[%clk 0:02:07]} 13. Nbxa3 {[%clk 0:02:36]}  cxd4 {[%clk 0:02:04]} 14. Nxd4 {[%clk 0:02:32]}  Qb6 {[%clk 0:01:37]} 15. e3 {[%clk 0:02:27]}  Ne5 {[%clk 0:01:17]} 16. h3 {[%clk 0:02:11]}  Bd7 {[%clk 0:01:15]} 17. Nab5 {[%clk 0:02:01]}  Bc6 {[%clk 0:01:12]} 18. Nxc6 {[%clk 0:01:53]}  bxc6 {[%clk 0:01:13]} 19. Nd4 {[%clk 0:01:53]}  Nc5 {[%clk 0:01:07]} 20. Qc2 {[%clk 0:01:52]}  Rac8 {[%clk 0:01:04]} 21. a3 {[%clk 0:01:51]}  Ncd3 {[%clk 0:00:58]} 22. Rxd3 {[%clk 0:01:33]}  Nxd3 {[%clk 0:00:59]} 23. Qxd3 {[%clk 0:01:33]}  c5 {[%clk 0:00:59]} 24. b4 {[%clk 0:01:22]}  cxd4 {[%clk 0:00:58]} 25. exd4 {[%clk 0:01:21]}  e5 {[%clk 0:00:55]} 26. c5 {[%clk 0:01:21]}  dxc5 {[%clk 0:00:54]} 27. dxc5 {[%clk 0:01:21]}  Qc7 {[%clk 0:00:47]} 28. Qc4+ {[%clk 0:01:03]}  Kh8 {[%clk 0:00:46]} 29. c6 {[%clk 0:01:01]}  f4 {[%clk 0:00:44]} 30. b5 {[%clk 0:00:43]}  fxg3 {[%clk 0:00:25]} 31. fxg3 {[%clk 0:00:43]}  Qb6+ {[%clk 0:00:25]} 32. Kh1 {[%clk 0:00:43]}  Rf2 {[%clk 0:00:26]} 33. Bc3 {[%clk 0:00:37]}  Rcf8 {[%clk 0:00:26]} 34. Be1 {[%clk 0:00:28]}  Rxg2 {[%clk 0:00:20]} 35. Kxg2 {[%clk 0:00:28]}  Qe3 {[%clk 0:00:20]} 36. c7 {[%clk 0:00:22]}  Qf3+ {[%clk 0:00:16]} 37. Kh2 {[%clk 0:00:21]}  e4 {[%clk 0:00:10]} 38. Rc1 {[%clk 0:00:17]}  Rc8 {[%clk 0:00:06]} 39. b6 {[%clk 0:00:17]}  Be5 {[%clk 0:00:04]} 40. b7 {[%clk 0:00:16]}  Rxc7 {[%clk 0:00:03]} 41. b8=Q+ {[%clk 0:00:16]}  Kg7 {[%clk 0:00:04]} 42. Qbxc7+ {[%clk 0:00:17]}  Bxc7 {[%clk 0:00:04]} 43. Qxc7+ {[%clk 0:00:16]}  Kh6 {[%clk 0:00:05]} 1-0


[Site "https://www.chess.com"]

[Event "Titled Tuesday Blitz June 20 Early 2023"]
[White "Rodchenkov, Sergey D."]
[Black "Starozhilov, Leonid"]
[WhiteFideId "4168712"]
[BlackFideId "14106752"]
[WhiteElo "2277"]
[BlackElo "2352"]
[Result "1-0"]
[Round "6"]
[TimeControl "180+2"]
[Date "2023.06.20"]
[WhiteClock "0:00:07"]
[BlackClock "0:00:00"]
[Board "100"]

1. e4 {[%clk 0:02:59]}  g6 {[%clk 0:03:00]} 2. d4 {[%clk 0:02:59]}  Bg7 {[%clk 0:03:01]} 3. Nc3 {[%clk 0:02:59]}  d6 {[%clk 0:03:00]} 4. Be3 {[%clk 0:03:00]}  a6 {[%clk 0:03:00]} 5. Qd2 {[%clk 0:02:57]}  b5 {[%clk 0:02:59]} 6. h4 {[%clk 0:02:56]}  h5 {[%clk 0:02:57]} 7. f3 {[%clk 0:02:55]}  Nd7 {[%clk 0:02:57]} 8. Nh3 {[%clk 0:02:55]}  Ngf6 {[%clk 0:02:57]} 9. Ng5 {[%clk 0:02:55]}  Nh7 {[%clk 0:02:58]} 10. Nxh7 {[%clk 0:02:53]}  Rxh7 {[%clk 0:02:59]} 11. a4 {[%clk 0:02:52]}  b4 {[%clk 0:02:36]} 12. Ne2 {[%clk 0:02:50]}  c5 {[%clk 0:02:30]} 13. c3 {[%clk 0:02:50]}  Rb8 {[%clk 0:02:27]} 14. Nf4 {[%clk 0:02:46]}  bxc3 {[%clk 0:02:22]} 15. bxc3 {[%clk 0:02:44]}  Qa5 {[%clk 0:02:23]} 16. Bc4 {[%clk 0:02:31]}  e6 {[%clk 0:01:39]} 17. Ke2 {[%clk 0:01:52]}  Ke7 {[%clk 0:01:29]} 18. g4 {[%clk 0:01:33]}  cxd4 {[%clk 0:01:24]} 19. cxd4 {[%clk 0:01:27]}  Qxd2+ {[%clk 0:01:25]} 20. Kxd2 {[%clk 0:01:28]}  hxg4 {[%clk 0:01:25]} 21. fxg4 {[%clk 0:01:29]}  Bb7 {[%clk 0:01:16]} 22. Bd3 {[%clk 0:01:25]}  Nf6 {[%clk 0:01:11]} 23. Rab1 {[%clk 0:01:06]}  Rhh8 {[%clk 0:01:09]} 24. e5 {[%clk 0:00:57]}  Nxg4 {[%clk 0:01:03]} 25. exd6+ {[%clk 0:00:48]}  Kxd6 {[%clk 0:01:04]} 26. Rb6+ {[%clk 0:00:46]}  Kc7 {[%clk 0:00:53]} 27. Rhb1 {[%clk 0:00:46]}  Nxe3 {[%clk 0:00:47]} 28. Kxe3 {[%clk 0:00:45]}  Rhd8 {[%clk 0:00:23]} 29. Ne2 {[%clk 0:00:45]}  Bh6+ {[%clk 0:00:22]} 30. Kf2 {[%clk 0:00:45]}  Bc6 {[%clk 0:00:18]} 31. Rxb8 {[%clk 0:00:35]}  Rxb8 {[%clk 0:00:18]} 32. Rxb8 {[%clk 0:00:35]}  Kxb8 {[%clk 0:00:19]} 33. Bxa6 {[%clk 0:00:33]}  Bxa4 {[%clk 0:00:19]} 34. Bd3 {[%clk 0:00:28]}  Kc7 {[%clk 0:00:19]} 35. Ng3 {[%clk 0:00:28]}  Bd1 {[%clk 0:00:13]} 36. Ne4 {[%clk 0:00:21]}  Kd7 {[%clk 0:00:12]} 37. Bb5+ {[%clk 0:00:15]}  Ke7 {[%clk 0:00:12]} 38. Bd3 {[%clk 0:00:14]}  Bg4 {[%clk 0:00:10]} 39. Be2 {[%clk 0:00:10]}  Bf5 {[%clk 0:00:09]} 40. Bf3 {[%clk 0:00:08]}  Bg7 {[%clk 0:00:09]} 41. Ke3 {[%clk 0:00:08]}  Bh6+ {[%clk 0:00:09]} 42. Kd3 {[%clk 0:00:08]}  f6 {[%clk 0:00:08]} 43. h5 {[%clk 0:00:08]}  g5 {[%clk 0:00:08]} 44. Bg2 {[%clk 0:00:05]}  Bxe4+ {[%clk 0:00:07]} 45. Kxe4 {[%clk 0:00:05]}  f5+ {[%clk 0:00:08]} 46. Kd3 {[%clk 0:00:03]}  g4 {[%clk 0:00:06]} 47. d5 {[%clk 0:00:03]}  e5 {[%clk 0:00:06]} 48. Kc4 {[%clk 0:00:04]}  Kd6 {[%clk 0:00:07]} 49. Bf1 {[%clk 0:00:03]}  e4 {[%clk 0:00:06]} 50. Bg2 {[%clk 0:00:03]}  Bg7 {[%clk 0:00:05]} 51. Bf1 {[%clk 0:00:01]}  e3 {[%clk 0:00:03]} 52. Be2 {[%clk 0:00:02]}  f4 {[%clk 0:00:04]} 53. Bxg4 {[%clk 0:00:02]}  Bh6 {[%clk 0:00:04]} 54. Bf3 {[%clk 0:00:02]}  Ke5 {[%clk 0:00:05]} 55. Be2 {[%clk 0:00:03]}  Bf8 {[%clk 0:00:05]} 56. Bf3 {[%clk 0:00:03]}  Kf5 {[%clk 0:00:06]} 57. Kb5 {[%clk 0:00:03]}  Ke5 {[%clk 0:00:05]} 58. Kc6 {[%clk 0:00:03]}  Kd4 {[%clk 0:00:02]} 59. d6 {[%clk 0:00:04]}  Kd3 {[%clk 0:00:02]} 60. d7 {[%clk 0:00:04]}  Be7 {[%clk 0:00:03]} 61. h6 {[%clk 0:00:05]}  e2 {[%clk 0:00:04]} 62. Bxe2+ {[%clk 0:00:05]}  Kxe2 {[%clk 0:00:04]} 63. h7 {[%clk 0:00:05]}  f3 {[%clk 0:00:04]} 64. h8=Q {[%clk 0:00:06]}  f2 {[%clk 0:00:05]} 65. Qe5+ {[%clk 0:00:07]}  Kd1 {[%clk 0:00:00]} 66. Qf5 {[%clk 0:00:07]} 1-0


[Site "https://www.chess.com"]

[Event "Titled Tuesday Blitz June 20 Early 2023"]
[White "Bruedigam, Martin"]
[Black "Rastbod, Ali"]
[WhiteFideId "24608033"]
[BlackFideId "12567477"]
[WhiteElo "2331"]
[BlackElo "2281"]
[Result "1-0"]
[Round "6"]
[TimeControl "180+2"]
[Date "2023.06.20"]
[WhiteClock "0:01:41"]
[BlackClock "0:02:01"]
[Board "102"]

1. d4 {[%clk 0:02:57]}  d5 {[%clk 0:03:00]} 2. c4 {[%clk 0:02:57]}  e6 {[%clk 0:03:00]} 3. Nc3 {[%clk 0:02:57]}  a6 {[%clk 0:03:01]} 4. cxd5 {[%clk 0:02:56]}  exd5 {[%clk 0:03:01]} 5. Nf3 {[%clk 0:02:56]}  c6 {[%clk 0:02:59]} 6. e4 {[%clk 0:02:51]}  dxe4 {[%clk 0:02:57]} 7. Ng5 {[%clk 0:02:51]}  Be7 {[%clk 0:02:46]} 8. Bc4 {[%clk 0:02:38]}  Bxg5 {[%clk 0:02:43]} 9. Qh5 {[%clk 0:02:36]}  g6 {[%clk 0:02:43]} 10. Qxg5 {[%clk 0:02:36]}  Qxg5 {[%clk 0:02:43]} 11. Bxg5 {[%clk 0:02:35]}  f5 {[%clk 0:02:40]} 12. f3 {[%clk 0:02:34]}  exf3 {[%clk 0:02:39]} 13. O-O {[%clk 0:02:25]}  fxg2 {[%clk 0:02:34]} 14. Rfe1+ {[%clk 0:02:22]}  Kf8 {[%clk 0:02:34]} 15. d5 {[%clk 0:02:16]}  h6 {[%clk 0:02:33]} 16. Bf4 {[%clk 0:02:08]}  Rh7 {[%clk 0:02:21]} 17. Bd6+ {[%clk 0:01:58]}  Kf7 {[%clk 0:02:06]} 18. dxc6+ {[%clk 0:01:41]}  Kf6 {[%clk 0:02:01]} 19. Bxg8 {[%clk 0:01:41]} 1-0


[Site "https://www.chess.com"]

[Event "Titled Tuesday Blitz June 20 Early 2023"]
[White "Marek, Matyas"]
[Black "Kokoszczynski, Jan"]
[WhiteFideId "335398"]
[BlackFideId "1174460"]
[WhiteElo "2302"]
[BlackElo "2139"]
[Result "1-0"]
[Round "6"]
[TimeControl "180+2"]
[Date "2023.06.20"]
[WhiteClock "0:00:21"]
[BlackClock "0:00:00"]
[Board "103"]

1. Nf3 {[%clk 0:03:00]}  Nf6 {[%clk 0:02:56]} 2. g3 {[%clk 0:03:00]}  g6 {[%clk 0:02:57]} 3. Bg2 {[%clk 0:03:00]}  Bg7 {[%clk 0:02:57]} 4. O-O {[%clk 0:03:01]}  O-O {[%clk 0:02:57]} 5. d3 {[%clk 0:03:00]}  b6 {[%clk 0:02:57]} 6. e4 {[%clk 0:03:00]}  Bb7 {[%clk 0:02:56]} 7. e5 {[%clk 0:03:00]}  Ne8 {[%clk 0:02:56]} 8. Re1 {[%clk 0:03:00]}  d6 {[%clk 0:02:55]} 9. e6 {[%clk 0:02:58]}  fxe6 {[%clk 0:02:51]} 10. Ng5 {[%clk 0:02:57]}  Bxg2 {[%clk 0:02:51]} 11. Nxe6 {[%clk 0:02:52]}  Qc8 {[%clk 0:02:47]} 12. Kxg2 {[%clk 0:02:49]}  Rf6 {[%clk 0:02:43]} 13. Nxg7 {[%clk 0:02:45]}  Nxg7 {[%clk 0:02:44]} 14. Rxe7 {[%clk 0:02:42]}  Nc6 {[%clk 0:02:43]} 15. Re1 {[%clk 0:02:40]}  Qf5 {[%clk 0:02:30]} 16. Be3 {[%clk 0:02:37]}  Qd5+ {[%clk 0:01:35]} 17. Kg1 {[%clk 0:02:17]}  Ne5 {[%clk 0:01:35]} 18. Nc3 {[%clk 0:02:17]}  Nf3+ {[%clk 0:01:29]} 19. Kf1 {[%clk 0:02:17]}  Nxh2+ {[%clk 0:01:28]} 20. Ke2 {[%clk 0:02:17]}  Qh5+ {[%clk 0:01:18]} 21. Kd2 {[%clk 0:02:14]}  Nf3+ {[%clk 0:01:18]} 22. Kc1 {[%clk 0:02:14]}  Nxe1 {[%clk 0:01:19]} 23. Qxe1 {[%clk 0:02:10]}  Re8 {[%clk 0:01:11]} 24. Ne4 {[%clk 0:02:07]}  Rfe6 {[%clk 0:01:07]} 25. c4 {[%clk 0:02:03]}  d5 {[%clk 0:01:02]} 26. cxd5 {[%clk 0:02:04]}  Qxd5 {[%clk 0:01:01]} 27. Kc2 {[%clk 0:02:04]}  c5 {[%clk 0:00:55]} 28. Qc3 {[%clk 0:02:03]}  Rxe4 {[%clk 0:00:47]} 29. dxe4 {[%clk 0:02:02]}  Qxe4+ {[%clk 0:00:48]} 30. Qd3 {[%clk 0:02:02]}  Nf5 {[%clk 0:00:48]} 31. Qxe4 {[%clk 0:01:45]}  Rxe4 {[%clk 0:00:49]} 32. Bd2 {[%clk 0:01:27]}  Re2 {[%clk 0:00:44]} 33. Rf1 {[%clk 0:01:27]}  Kf7 {[%clk 0:00:34]} 34. Kd3 {[%clk 0:01:26]}  Re7 {[%clk 0:00:34]} 35. Bc3 {[%clk 0:01:23]}  Rd7+ {[%clk 0:00:31]} 36. Kc4 {[%clk 0:01:14]}  h5 {[%clk 0:00:21]} 37. a4 {[%clk 0:01:14]}  g5 {[%clk 0:00:15]} 38. Re1 {[%clk 0:01:09]}  h4 {[%clk 0:00:13]} 39. Re5 {[%clk 0:01:01]}  Nd6+ {[%clk 0:00:10]} 40. Kd5 {[%clk 0:00:54]}  Ne8+ {[%clk 0:00:09]} 41. Kc6 {[%clk 0:00:49]}  Rd6+ {[%clk 0:00:09]} 42. Kb7 {[%clk 0:00:49]}  h3 {[%clk 0:00:08]} 43. Re1 {[%clk 0:00:43]}  g4 {[%clk 0:00:07]} 44. Kxa7 {[%clk 0:00:43]}  Nc7 {[%clk 0:00:06]} 45. Rh1 {[%clk 0:00:38]}  Nd5 {[%clk 0:00:05]} 46. Be5 {[%clk 0:00:37]}  Re6 {[%clk 0:00:06]} 47. Bb8 {[%clk 0:00:26]}  Re2 {[%clk 0:00:05]} 48. b3 {[%clk 0:00:23]}  Rxf2 {[%clk 0:00:05]} 49. Kb7 {[%clk 0:00:21]}  Rd2 {[%clk 0:00:05]} 50. Kc6 {[%clk 0:00:22]}  Kg6 {[%clk 0:00:04]} 51. Bc7 {[%clk 0:00:21]}  h2 {[%clk 0:00:03]} 52. Bxb6 {[%clk 0:00:20]}  Nxb6 {[%clk 0:00:03]} 53. Kxb6 {[%clk 0:00:21]}  Kf5 {[%clk 0:00:03]} 54. a5 {[%clk 0:00:21]}  Ke4 {[%clk 0:00:02]} 55. a6 {[%clk 0:00:21]}  Kf3 {[%clk 0:00:00]} 56. Ra1 {[%clk 0:00:21]} 1-0


[Site "https://www.chess.com"]

[Event "Titled Tuesday Blitz June 20 Early 2023"]
[White "ATM622"]
[Black "Toncheva, Nadya"]
[BlackFideId "2924056"]
[WhiteElo "2614"]
[BlackElo "2101"]
[Result "1-0"]
[Round "6"]
[TimeControl "180+2"]
[Date "2023.06.20"]
[WhiteClock "0:01:09"]
[BlackClock "0:00:00"]
[Board "106"]

1. d4 {[%clk 0:03:00]}  d5 {[%clk 0:03:00]} 2. c4 {[%clk 0:02:59]}  dxc4 {[%clk 0:03:00]} 3. e3 {[%clk 0:02:59]}  Nf6 {[%clk 0:03:01]} 4. Bxc4 {[%clk 0:02:59]}  e6 {[%clk 0:03:01]} 5. Nf3 {[%clk 0:02:59]}  c5 {[%clk 0:03:01]} 6. O-O {[%clk 0:03:00]}  a6 {[%clk 0:03:02]} 7. a4 {[%clk 0:02:59]}  Nc6 {[%clk 0:03:01]} 8. Nc3 {[%clk 0:03:00]}  Qc7 {[%clk 0:03:00]} 9. d5 {[%clk 0:02:42]}  exd5 {[%clk 0:02:59]} 10. Nxd5 {[%clk 0:02:43]}  Nxd5 {[%clk 0:03:00]} 11. Bxd5 {[%clk 0:02:43]}  Be7 {[%clk 0:02:49]} 12. e4 {[%clk 0:02:41]}  O-O {[%clk 0:02:49]} 13. Be3 {[%clk 0:02:40]}  Nb4 {[%clk 0:02:38]} 14. Rc1 {[%clk 0:02:40]}  Nxd5 {[%clk 0:02:35]} 15. exd5 {[%clk 0:02:40]}  Bd6 {[%clk 0:02:33]} 16. Bxc5 {[%clk 0:02:34]}  Bxc5 {[%clk 0:02:27]} 17. b4 {[%clk 0:02:34]}  Bxf2+ {[%clk 0:02:17]} 18. Rxf2 {[%clk 0:02:35]}  Qd6 {[%clk 0:02:15]} 19. Qd4 {[%clk 0:02:32]}  Bd7 {[%clk 0:02:12]} 20. a5 {[%clk 0:02:30]}  Rac8 {[%clk 0:02:11]} 21. Rfc2 {[%clk 0:02:24]}  Rfe8 {[%clk 0:02:04]} 22. Rxc8 {[%clk 0:02:21]}  Bxc8 {[%clk 0:02:00]} 23. Qc5 {[%clk 0:02:19]}  Qxc5+ {[%clk 0:01:36]} 24. bxc5 {[%clk 0:02:19]}  Kf8 {[%clk 0:01:28]} 25. d6 {[%clk 0:02:15]}  Bd7 {[%clk 0:01:27]} 26. Nd4 {[%clk 0:02:10]}  Re4 {[%clk 0:01:26]} 27. Nf3 {[%clk 0:02:08]}  Ra4 {[%clk 0:01:23]} 28. Ne5 {[%clk 0:02:07]}  Be6 {[%clk 0:01:07]} 29. c6 {[%clk 0:02:03]}  bxc6 {[%clk 0:01:03]} 30. Nxc6 {[%clk 0:01:55]}  Ke8 {[%clk 0:00:59]} 31. Rb1 {[%clk 0:01:51]}  Kd7 {[%clk 0:00:43]} 32. Rb6 {[%clk 0:01:51]}  Ra1+ {[%clk 0:00:41]} 33. Kf2 {[%clk 0:01:50]}  Ra2+ {[%clk 0:00:42]} 34. Kg3 {[%clk 0:01:46]}  Ra3+ {[%clk 0:00:35]} 35. Kf4 {[%clk 0:01:41]}  Kxd6 {[%clk 0:00:31]} 36. Nb4+ {[%clk 0:01:37]}  Ke7 {[%clk 0:00:30]} 37. Rxa6 {[%clk 0:01:35]}  Ra4 {[%clk 0:00:25]} 38. Rb6 {[%clk 0:01:35]}  Kf6 {[%clk 0:00:23]} 39. a6 {[%clk 0:01:33]}  g5+ {[%clk 0:00:22]} 40. Ke3 {[%clk 0:01:33]}  Ke5 {[%clk 0:00:14]} 41. a7 {[%clk 0:01:31]}  Ra3+ {[%clk 0:00:12]} 42. Kd2 {[%clk 0:01:32]}  Kf4 {[%clk 0:00:06]} 43. Ra6 {[%clk 0:01:30]}  Rxa6 {[%clk 0:00:06]} 44. Nxa6 {[%clk 0:01:31]}  Bd5 {[%clk 0:00:06]} 45. g3+ {[%clk 0:01:27]}  Kg4 {[%clk 0:00:07]} 46. Nc7 {[%clk 0:01:24]}  Bb7 {[%clk 0:00:07]} 47. a8=Q {[%clk 0:01:18]}  Bxa8 {[%clk 0:00:08]} 48. Nxa8 {[%clk 0:01:19]}  Kh3 {[%clk 0:00:08]} 49. Ke3 {[%clk 0:01:17]}  Kxh2 {[%clk 0:00:09]} 50. Kf3 {[%clk 0:01:16]}  Kh3 {[%clk 0:00:09]} 51. Nc7 {[%clk 0:01:13]}  h5 {[%clk 0:00:09]} 52. Nd5 {[%clk 0:01:12]}  g4+ {[%clk 0:00:08]} 53. Kf2 {[%clk 0:01:10]}  h4 {[%clk 0:00:07]} 54. Nf4+ {[%clk 0:01:08]}  Kh2 {[%clk 0:00:05]} 55. gxh4 {[%clk 0:01:09]}  g3+ {[%clk 0:00:00]} 56. Kf3 {[%clk 0:01:09]} 1-0


[Site "https://www.chess.com"]

[Event "Titled Tuesday Blitz June 20 Early 2023"]
[White "Arat, Ufuk Sezen"]
[Black "Santos Flores, Alberto"]
[WhiteFideId "6309089"]
[BlackFideId "3601234"]
[WhiteElo "2289"]
[BlackElo "2235"]
[Result "0-1"]
[Round "6"]
[TimeControl "180+2"]
[Date "2023.06.20"]
[WhiteClock "0:00:10"]
[BlackClock "0:00:27"]
[Board "108"]

1. e4 {[%clk 0:03:00]}  c5 {[%clk 0:03:00]} 2. Nf3 {[%clk 0:03:01]}  Nc6 {[%clk 0:03:00]} 3. d4 {[%clk 0:03:02]}  cxd4 {[%clk 0:03:01]} 4. Nxd4 {[%clk 0:03:02]}  g6 {[%clk 0:02:57]} 5. c4 {[%clk 0:03:02]}  Nf6 {[%clk 0:02:56]} 6. Nc3 {[%clk 0:03:03]}  d6 {[%clk 0:02:56]} 7. Be3 {[%clk 0:03:00]}  Ng4 {[%clk 0:02:56]} 8. Nxc6 {[%clk 0:02:50]}  bxc6 {[%clk 0:02:52]} 9. Bd2 {[%clk 0:02:25]}  Qb6 {[%clk 0:02:37]} 10. Qe2 {[%clk 0:02:26]}  Qxb2 {[%clk 0:02:37]} 11. Rb1 {[%clk 0:02:22]}  Qa3 {[%clk 0:02:30]} 12. h3 {[%clk 0:02:16]}  Nf6 {[%clk 0:02:20]} 13. Rb3 {[%clk 0:02:12]}  Qc5 {[%clk 0:02:14]} 14. Be3 {[%clk 0:01:49]}  Qa5 {[%clk 0:02:13]} 15. Bd2 {[%clk 0:01:49]}  Bg7 {[%clk 0:02:06]} 16. f4 {[%clk 0:01:42]}  O-O {[%clk 0:02:04]} 17. Qf3 {[%clk 0:01:40]}  Be6 {[%clk 0:01:49]} 18. Be2 {[%clk 0:01:30]}  Rab8 {[%clk 0:01:41]} 19. Nd5 {[%clk 0:01:28]}  Qxa2 {[%clk 0:01:23]} 20. Nxe7+ {[%clk 0:01:26]}  Kh8 {[%clk 0:01:24]} 21. Rxb8 {[%clk 0:01:19]}  Rxb8 {[%clk 0:01:24]} 22. e5 {[%clk 0:00:38]}  dxe5 {[%clk 0:01:15]} 23. fxe5 {[%clk 0:00:36]}  Qa1+ {[%clk 0:01:14]} 24. Bd1 {[%clk 0:00:36]}  Qxe5+ {[%clk 0:01:14]} 25. Qe2 {[%clk 0:00:36]}  Qxe2+ {[%clk 0:01:07]} 26. Bxe2 {[%clk 0:00:34]}  Rb1+ {[%clk 0:01:07]} 27. Bd1 {[%clk 0:00:35]}  Bxc4 {[%clk 0:01:00]} 28. Nxc6 {[%clk 0:00:35]}  Ne4 {[%clk 0:00:53]} 29. Na5 {[%clk 0:00:30]}  Bd5 {[%clk 0:00:47]} 30. Rf1 {[%clk 0:00:23]}  Ra1 {[%clk 0:00:45]} 31. Rf3 {[%clk 0:00:17]}  Nxd2 {[%clk 0:00:42]} 32. Rd3 {[%clk 0:00:16]}  Rxa5 {[%clk 0:00:40]} 33. Kxd2 {[%clk 0:00:16]}  h5 {[%clk 0:00:37]} 34. g4 {[%clk 0:00:16]}  hxg4 {[%clk 0:00:37]} 35. Bxg4 {[%clk 0:00:16]}  Kh7 {[%clk 0:00:31]} 36. Rg3 {[%clk 0:00:14]}  Be6 {[%clk 0:00:29]} 37. Be2 {[%clk 0:00:12]}  Ra2+ {[%clk 0:00:28]} 38. Ke1 {[%clk 0:00:12]}  a5 {[%clk 0:00:27]} 39. Re3 {[%clk 0:00:10]}  a4 {[%clk 0:00:27]} 0-1


[Site "https://www.chess.com"]

[Event "Titled Tuesday Blitz June 20 Early 2023"]
[White "Janaszak, Dawid"]
[Black "Manukian, Artak"]
[WhiteFideId "1119206"]
[BlackFideId "13301373"]
[WhiteElo "2220"]
[BlackElo "2130"]
[Result "1-0"]
[Round "6"]
[TimeControl "180+2"]
[Date "2023.06.20"]
[WhiteClock "0:00:42"]
[BlackClock "0:01:15"]
[Board "110"]

1. e4 {[%clk 0:03:00]}  c6 {[%clk 0:02:58]} 2. Nf3 {[%clk 0:03:00]}  d5 {[%clk 0:02:58]} 3. Nc3 {[%clk 0:03:01]}  dxe4 {[%clk 0:02:58]} 4. Nxe4 {[%clk 0:03:02]}  Nf6 {[%clk 0:02:59]} 5. Nxf6+ {[%clk 0:03:01]}  exf6 {[%clk 0:02:59]} 6. d4 {[%clk 0:02:58]}  Bd6 {[%clk 0:02:59]} 7. c3 {[%clk 0:02:59]}  O-O {[%clk 0:02:59]} 8. Be3 {[%clk 0:02:57]}  Bg4 {[%clk 0:02:59]} 9. Qc2 {[%clk 0:02:57]}  Re8 {[%clk 0:02:58]} 10. Bd3 {[%clk 0:02:56]}  h6 {[%clk 0:02:55]} 11. h3 {[%clk 0:02:53]}  Be6 {[%clk 0:02:48]} 12. O-O-O {[%clk 0:02:45]}  Bxa2 {[%clk 0:02:43]} 13. b3 {[%clk 0:02:31]}  Ba3+ {[%clk 0:02:41]} 14. Kd2 {[%clk 0:02:31]}  Bxb3 {[%clk 0:02:36]} 15. Qxb3 {[%clk 0:02:30]}  Bf8 {[%clk 0:02:37]} 16. Qxb7 {[%clk 0:02:20]}  Nd7 {[%clk 0:02:37]} 17. Rb1 {[%clk 0:02:11]}  a5 {[%clk 0:02:36]} 18. Qxc6 {[%clk 0:02:09]}  f5 {[%clk 0:02:23]} 19. Rb7 {[%clk 0:01:58]}  Nf6 {[%clk 0:02:20]} 20. Bc4 {[%clk 0:01:46]}  Re7 {[%clk 0:02:20]} 21. Rxe7 {[%clk 0:01:41]}  Bxe7 {[%clk 0:02:20]} 22. Ne5 {[%clk 0:01:39]}  Ne4+ {[%clk 0:02:18]} 23. Kc2 {[%clk 0:01:34]}  Nd6 {[%clk 0:02:11]} 24. Ba2 {[%clk 0:01:22]}  Bf6 {[%clk 0:01:59]} 25. Nd7 {[%clk 0:01:10]}  Ne4 {[%clk 0:01:49]} 26. Nxf6+ {[%clk 0:01:01]}  Nxf6 {[%clk 0:01:49]} 27. Rb1 {[%clk 0:00:52]}  Rc8 {[%clk 0:01:48]} 28. Qb7 {[%clk 0:00:47]}  Ne4 {[%clk 0:01:31]} 29. Qxf7+ {[%clk 0:00:45]}  Kh8 {[%clk 0:01:15]} 30. Rb7 {[%clk 0:00:42]} 1-0


[Site "https://www.chess.com"]